Workbook

Sheet Sheet1
A1: 街路巷命名核准明细表
A3: 一、月山镇（150条）
A4: 1、钱岗村（13条）
A5: 序号 | B5: 道路名称 | C5: 汉语拼音 | D5: 位置描述 | E5: 基本参数 | G5: 走向
E6: 长 | F6: 宽
A7: 1 | B7: 东平村一巷 | C7: Dōngpíngcūn 1 Xiàng | D7: 东起东平村一巷1号， 西至东平村一巷22号 | E7: 101 | F7: 1.5 | G7: 东西
A8: 2 | B8: 东平村二巷 | C8: Dōngpíngcūn 2 Xiàng | D8: 东起东平村二巷1号， 西至东平村二巷22号 | E8: 101 | F8: 1.5 | G8: 东西
A9: 3 | B9: 东平村三巷 | C9: Dōngpíngcūn 3 Xiàng | D9: 东起东平村三巷1号， 西至东平村三巷22号 | E9: 101 | F9: 1.5 | G9: 东西
A10: 4 | B10: 东平村四巷 | C10: Dōngpíngcūn 4 Xiàng | D10: 东起东平村四巷1号， 西至东平村四巷22号 | E10: 101 | F10: 1.5 | G10: 东西
A11: 5 | B11: 东平村五巷 | C11: Dōngpíngcūn 5 Xiàng | D11: 东起东平村五巷1号， 西至东平村五巷16号 | E11: 83 | F11: 1.5 | G11: 东西
A12: 6 | B12: 东平村六巷 | C12: Dōngpíngcūn 6 Xiàng | D12: 东起东平村六巷1号， 西至东平村六巷16号 | E12: 83 | F12: 1.5 | G12: 东西
A13: 7 | B13: 东平村七巷 | C13: Dōngpíngcūn 7 Xiàng | D13: 东起东平村七巷1号， 西至东平村七巷16号 | E13: 83 | F13: 1.5 | G13: 东西
A14: 8 | B14: 东平村八巷 | C14: Dōngpíngcūn 8 Xiàng | D14: 东起东平村八巷1号， 西至东平村八巷16号 | E14: 83 | F14: 1.5 | G14: 东西
A15: 9 | B15: 东平村九巷 | C15: Dōngpíngcūn 9 Xiàng | D15: 东起东平村九巷1号， 西至东平村九巷16号 | E15: 83 | F15: 1.5 | G15: 东西
A16: 10 | B16: 东平村十巷 | C16: Dōngpíngcūn 10 Xiàng | D16: 东起东平村十巷1号， 西至东平村十巷18号 | E16: 89 | F16: 1.5 | G16: 东西
A17: 11 | B17: 东平村十一巷 | C17: Dōngpíngcūn 11 Xiàng | D17: 东起东平村十一巷1号， 西至东平村十一巷18号 | E17: 89 | F17: 1.5 | G17: 东西
A18: 12 | B18: 东平村十二巷 | C18: Dōngpíngcūn 12 Xiàng | D18: 东起东平村十二巷1号， 西至东平村十二巷18号 | E18: 89 | F18: 1.5 | G18: 东西
A19: 13 | B19: 东平村十三巷 | C19: Dōngpíngcūn 13 Xiàng | D19: 东起东平村十三巷1号， 西至东平村十三巷12号 | E19: 89 | F19: 1.5 | G19: 东西
A21: 2、水二村（101条）
A22: 序号 | B22: 道路名称 | C22: 汉语拼音 | D22: 位置描述 | E22: 基本参数 | G22: 走向
E23: 长 | F23: 宽
A24: 1 | B24: 金屋村一巷 | C24: Jīnwūcūn 1 Xiàng | D24: 南起金屋村一巷1号， 北至金屋村一巷5号 | E24: 75 | F24: 2.3 | G24: 南北
A25: 2 | B25: 金屋村二巷 | C25: Jīnwūcūn 2 Xiàng | D25: 南起金屋村二巷1号， 北至金屋村二巷6号 | E25: 70 | F25: 2.8 | G25: 南北
A26: 3 | B26: 金屋村三巷 | C26: Jīnwūcūn 3 Xiàng | D26: 南起金屋村三巷1号， 北至金屋村三巷7号 | E26: 70 | F26: 2.8 | G26: 南北
A27: 4 | B27: 金屋村四巷 | C27: Jīnwūcūn 4 Xiàng | D27: 南起金屋村四巷1号， 北至金屋村四巷8号 | E27: 70 | F27: 2.3 | G27: 南北
A28: 5 | B28: 金屋村五巷 | C28: Jīnwūcūn 5 Xiàng | D28: 南起金屋村五巷1号， 北至金屋村五巷9号 | E28: 65 | F28: 2.3 | G28: 南北
A29: 6 | B29: 龙尾村一巷 | C29: Lóngwěicūn 1 Xiàng | D29: 南起龙尾村一巷1号， 北至龙尾村一巷25号 | E29: 125 | F29: 2.5 | G29: 南北
A30: 7 | B30: 龙尾村二巷 | C30: Lóngwěicūn 2 Xiàng | D30: 南起龙尾村二巷1号， 北至龙尾村二巷18号 | E30: 135 | F30: 2.5 | G30: 南北
A31: 8 | B31: 龙尾村三巷 | C31: Lóngwěicūn 3 Xiàng | D31: 南起龙尾村三巷1号， 北至龙尾村三巷20号 | E31: 135 | F31: 1.2 | G31: 南北
A32: 9 | B32: 龙尾村四巷 | C32: Lóngwěicūn 4 Xiàng | D32: 南起龙尾村四巷1号， 北至龙尾村四巷18号 | E32: 90 | F32: 1.2 | G32: 南北
A33: 10 | B33: 龙尾村五巷 | C33: Lóngwěicūn 5 Xiàng | D33: 南起龙尾村五巷1号， 北至龙尾村五巷21号 | E33: 85 | F33: 1 | G33: 南北
A34: 11 | B34: 龙尾村六巷 | C34: Lóngwěicūn 6 Xiàng | D34: 南起龙尾村六巷1号， 北至龙尾村六巷20号 | E34: 82 | F34: 2.5 | G34: 南北
A35: 12 | B35: 龙尾村七巷 | C35: Lóngwěicūn 7 Xiàng | D35: 南起龙尾村七巷1号， 北至龙尾村七巷17号 | E35: 80 | F35: 2.5 | G35: 南北
A36: 13 | B36: 龙尾村八巷 | C36: Lóngwěicūn 8 Xiàng | D36: 南起龙尾村八巷1号， 北至龙尾村八巷16号 | E36: 65 | F36: 2.5 | G36: 南北
A37: 14 | B37: 龙尾村九巷 | C37: Lóngwěicūn 9 Xiàng | D37: 南起龙尾村九巷1号， 北至龙尾村九巷14号 | E37: 70 | F37: 1.2 | G37: 南北
A38: 15 | B38: 龙尾村十巷 | C38: Lóngwěicūn 10 Xiàng | D38: 南起龙尾村十巷1号， 北至龙尾村十巷15号 | E38: 70 | F38: 2.5 | G38: 南北
A39: 16 | B39: 龙尾村十一巷 | C39: Lóngwěicūn 11 Xiàng | D39: 南起龙尾村十巷1号， 北至龙尾村十巷16号 | E39: 70 | F39: 2.5 | G39: 南北
A40: 17 | B40: 龙尾村十二巷 | C40: Lóngwěicūn 12 Xiàng | D40: 南起龙尾村十巷1号， 北至龙尾村十巷17号 | E40: 71 | F40: 2.3 | G40: 南北
A41: 18 | B41: 龙尾村二村一巷 | C41: Lóngwěicūn Èrcūn 1 Xiàng | D41: 南起龙尾村二村一巷1号， 北至龙尾村二村一巷16号 | E41: 82 | F41: 1.2 | G41: 南北
A42: 19 | B42: 龙尾村二村二巷 | C42: Lóngwěicūn Èrcūn 2 Xiàng | D42: 南起龙尾村二村二巷1号， 北至龙尾村二村二巷17号 | E42: 93 | F42: 1.2 | G42: 南北
A43: 20 | B43: 龙尾村二村三巷 | C43: Lóngwěicūn Èrcūn 3 Xiàng | D43: 南起龙尾村二村三巷1号， 北至龙尾村二村三巷18号 | E43: 90 | F43: 2.5 | G43: 南北
A44: 21 | B44: 龙尾村二村四巷 | C44: Lóngwěicūn Èrcūn 4 Xiàng | D44: 南起龙尾村二村四巷1号， 北至龙尾村二村四巷19号 | E44: 90 | F44: 1.2 | G44: 南北
A45: 22 | B45: 龙尾村二村五巷 | C45: Lóngwěicūn Èrcūn 5 Xiàng | D45: 南起龙尾村二村五巷1号， 北至龙尾村二村五巷20号 | E45: 90 | F45: 1.2 | G45: 南北
A46: 23 | B46: 龙尾村二村六巷 | C46: Lóngwěicūn Èrcūn 6 Xiàng | D46: 南起龙尾村二村六巷1号， 北至龙尾村二村六巷22号 | E46: 80 | F46: 1.2 | G46: 南北
A47: 24 | B47: 龙尾村二村七巷 | C47: Lóngwěicūn Èrcūn 7 Xiàng | D47: 南起龙尾村二村七巷1号， 北至龙尾村二村七巷23号 | E47: 60 | F47: 1.2 | G47: 南北
A48: 25 | B48: 龙尾村三村一巷 | C48: Lóngwěicūn Sāncūn 1 Xiàng | D48: 南起龙尾村三村一巷1号， 北至月山尾村三村一巷25号 | E48: 82 | F48: 1.2 | G48: 南北
A49: 26 | B49: 龙尾村三村二巷 | C49: Lóngwěicūn Sāncūn 2 Xiàng | D49: 南起龙尾村三村二巷1号， 北至龙尾村三村二巷26号 | E49: 85 | F49: 2.5 | G49: 南北
A50: 27 | B50: 龙尾村三村三巷 | C50: Lóngwěicūn Sāncūn 3 Xiàng | D50: 南起龙尾村三村三巷1号， 北至龙尾村三村三巷27号 | E50: 90 | F50: 2.5 | G50: 南北
A51: 28 | B51: 龙尾村三村四巷 | C51: Lóngwěicūn Sāncūn 4 Xiàng | D51: 南起龙尾村三村四巷1号， 北至龙尾村三村四巷28号 | E51: 90 | F51: 2.5 | G51: 南北
A52: 29 | B52: 三山塘村一巷 | C52: Sānshāntángcūn 1 Xiàng | D52: 南起三山塘村一巷1号， 北至三山塘村一巷5号 | E52: 70 | F52: 1.5 | G52: 南北
A53: 30 | B53: 三山塘村二巷 | C53: Sānshāntángcūn 2 Xiàng | D53: 南起三山塘村二巷1号， 北至三山塘村二巷6号 | E53: 70 | F53: 1.5 | G53: 南北
A54: 31 | B54: 三山塘村三巷 | C54: Sānshāntángcūn 3 Xiàng | D54: 南起三山塘村三巷1号， 北至三山塘村三巷7号 | E54: 70 | F54: 1.5 | G54: 南北
A55: 32 | B55: 三山塘村四巷 | C55: Sānshāntángcūn 4 Xiàng | D55: 南起三山塘村四巷1号， 北至三山塘村四巷8号 | E55: 70 | F55: 1.5 | G55: 南北
A56: 33 | B56: 三山塘村五巷 | C56: Sānshāntángcūn 5 Xiàng | D56: 南起三山塘村五巷1号， 北至三山塘村五巷9号 | E56: 70 | F56: 1.5 | G56: 南北
A57: 34 | B57: 三山塘村六巷 | C57: Sānshāntángcūn 6 Xiàng | D57: 南起三山塘村六巷1号， 北至三山塘村六巷10号 | E57: 70 | F57: 1.5 | G57: 南北
A58: 35 | B58: 三山塘村七巷 | C58: Sānshāntángcūn 7 Xiàng | D58: 南起三山塘村七巷1号， 北至三山塘村七巷11号 | E58: 65 | F58: 1.5 | G58: 南北
A59: 36 | B59: 三山塘村八巷 | C59: Sānshāntángcūn 8 Xiàng | D59: 南起三山塘村八巷1号， 北至三山塘村八巷12号 | E59: 70 | F59: 1.5 | G59: 南北
A60: 37 | B60: 三山塘村九巷 | C60: Sānshāntángcūn 9 Xiàng | D60: 南起三山塘村九巷1号， 北至三山塘村九巷13号 | E60: 70 | F60: 1.5 | G60: 南北
A61: 38 | B61: 水二新村一巷 | C61: Shuǐèr Xīncūn 1 Xiàng | D61: 南起水二新村一巷1号， 北至水二新村一巷5号 | E61: 70 | F61: 1.5 | G61: 南北
A62: 39 | B62: 水二新村二巷 | C62: Shuǐèr Xīncūn 2 Xiàng | D62: 南起水二新村二巷1号， 北至水二新村二巷6号 | E62: 65 | F62: 1 | G62: 南北
A63: 40 | B63: 水二新村三巷 | C63: Shuǐèr Xīncūn 3 Xiàng | D63: 南起水二新村三巷1号， 北至水二新村三巷7号 | E63: 70 | F63: 1 | G63: 南北
A64: 41 | B64: 水二新村四巷 | C64: Shuǐèr Xīncūn 4 Xiàng | D64: 南起水二新村四巷1号， 北至水二新村四巷8号 | E64: 85 | F64: 1.5 | G64: 南北
A65: 42 | B65: 水二新村五巷 | C65: Shuǐèr Xīncūn 5 Xiàng | D65: 南起水二新村五巷1号， 北至水二新村五巷9号 | E65: 90 | F65: 2 | G65: 南北
A66: 43 | B66: 水二新村六巷 | C66: Shuǐèr Xīncūn 6 Xiàng | D66: 南起水二新村六巷1号， 北至水二新村六巷10号 | E66: 90 | F66: 1.5 | G66: 南北
A67: 44 | B67: 水二新村七巷 | C67: Shuǐèr Xīncūn 7 Xiàng | D67: 南起水二新村七巷1号， 北至水二新村七巷11号 | E67: 90 | F67: 1.5 | G67: 南北
A68: 45 | B68: 水二新村八巷 | C68: Shuǐèr Xīncūn 8 Xiàng | D68: 南起水二新村八巷1号， 北至水二新村八巷12号 | E68: 90 | F68: 1.5 | G68: 南北
A69: 46 | B69: 水二新村九巷 | C69: Shuǐèr Xīncūn 9 Xiàng | D69: 南起水二新村九巷1号， 北至水二新村九巷13号 | E69: 90 | F69: 1.5 | G69: 南北
A70: 47 | B70: 水二新村十巷 | C70: Shuǐèr Xīncūn 10 Xiàng | D70: 南起水二新村十巷1号， 北至水二新村十巷14号 | E70: 90 | F70: 1.5 | G70: 南北
A71: 48 | B71: 新农村一巷 | C71: Xīnnóngcūn 1 xiàng | D71: 南起新农村一巷1号， 北至新农村一巷5号 | E71: 70 | F71: 1.2 | G71: 南北
A72: 49 | B72: 新农村二巷 | C72: Xīnnóngcūn 2 xiàng | D72: 南起新农村二巷1号， 北至新农村二巷6号 | E72: 70 | F72: 1.2 | G72: 南北
A73: 50 | B73: 新农村三巷 | C73: Xīnnóngcūn 3 xiàng | D73: 南起新农村三巷1号， 北至新农村三巷7号 | E73: 70 | F73: 1.2 | G73: 南北
A74: 51 | B74: 新农村四巷 | C74: Xīnnóngcūn 4 xiàng | D74: 南起新农村四巷1号， 北至新农村四巷8号 | E74: 85 | F74: 1.5 | G74: 南北
A75: 52 | B75: 新农村五巷 | C75: Xīnnóngcūn 5 xiàng | D75: 南起新农村五巷1号， 北至新农村五巷9号 | E75: 90 | F75: 1.2 | G75: 南北
A76: 53 | B76: 新农村六巷 | C76: Xīnnóngcūn 6 xiàng | D76: 南起新农村六巷1号， 北至新农村六巷10号 | E76: 90 | F76: 1.2 | G76: 南北
A77: 54 | B77: 新农村七巷 | C77: Xīnnóngcūn 7 xiàng | D77: 南起新农村七巷1号， 北至新农村七巷11号 | E77: 90 | F77: 1.2 | G77: 南北
A78: 55 | B78: 新农村八巷 | C78: Xīnnóngcūn 8 xiàng | D78: 南起新农村八巷1号， 北至新农村八巷12号 | E78: 90 | F78: 1.2 | G78: 南北
A79: 56 | B79: 新农村九巷 | C79: Xīnnóngcūn 9 xiàng | D79: 南起新农村九巷1号， 北至新农村九巷13号 | E79: 90 | F79: 1.2 | G79: 南北
A80: 57 | B80: 水二新屋村一巷 | C80: Shuǐèr Xīnwūcūn 1 Xiàng | D80: 南起水二新屋村一巷1号， 北至水二新屋村一巷5号 | E80: 75 | F80: 2.2 | G80: 南北
A81: 58 | B81: 水二新屋村二巷 | C81: Shuǐèr Xīnwūcūn 2 Xiàng | D81: 南起水二新屋村二巷1号， 北至水二新屋村二巷6号 | E81: 70 | F81: 2.2 | G81: 南北
A82: 59 | B82: 水二新屋村三巷 | C82: Shuǐèr Xīnwūcūn 3 Xiàng | D82: 南起水二新屋村三巷1号， 北至水二新屋村三巷7号 | E82: 70 | F82: 2.2 | G82: 南北
A83: 60 | B83: 水二新屋村四巷 | C83: Shuǐèr Xīnwūcūn 4 Xiàng | D83: 南起水二新屋村四巷1号， 北至水二新屋村四巷8号 | E83: 75 | F83: 2.2 | G83: 南北
A84: 61 | B84: 水二新屋村五巷 | C84: Shuǐèr Xīnwūcūn 5 Xiàng | D84: 南起水二新屋村五巷1号， 北至水二新屋村五巷9号 | E84: 75 | F84: 2.2 | G84: 南北
A85: 62 | B85: 水二新屋村六巷 | C85: Shuǐèr Xīnwūcūn 6 Xiàng | D85: 南起水二新屋村六巷1号， 北至水二新屋村六巷10号 | E85: 75 | F85: 2.2 | G85: 南北
A86: 63 | B86: 水二新屋村七巷 | C86: Shuǐèr Xīnwūcūn 7 Xiàng | D86: 南起水二新屋村七巷1号， 北至水二新屋村七巷11号 | E86: 80 | F86: 2.2 | G86: 南北
A87: 64 | B87: 水二新屋村八巷 | C87: Shuǐèr Xīnwūcūn 8 Xiàng | D87: 南起水二新屋村八巷1号， 北至水二新屋村八巷12号 | E87: 80 | F87: 2.2 | G87: 南北
A88: 65 | B88: 水二新屋村九巷 | C88: Shuǐèr Xīnwūcūn 9 Xiàng | D88: 南起水二新屋村九巷1号， 北至水二新屋村九巷13号 | E88: 80 | F88: 2.2 | G88: 南北
A89: 66 | B89: 秧坎咀村一巷 | C89: Yāngkǎnzuǐcūn 1 Xiàng | D89: 南起秧坎咀村一巷1号， 北至秧坎咀村一巷25号 | E89: 86 | F89: 1.3 | G89: 南北
A90: 67 | B90: 秧坎咀村二巷 | C90: Yāngkǎnzuǐcūn 2 Xiàng | D90: 南起秧坎咀村二巷1号， 北至秧坎咀村二巷18号 | E90: 90 | F90: 1.3 | G90: 南北
A91: 68 | B91: 秧坎咀村三巷 | C91: Yāngkǎnzuǐcūn 3 Xiàng | D91: 南起秧坎咀村三巷1号， 北至秧坎咀村三巷20号 | E91: 108 | F91: 1.3 | G91: 南北
A92: 69 | B92: 秧坎咀村四巷 | C92: Yāngkǎnzuǐcūn 4 Xiàng | D92: 南起秧坎咀村四巷1号， 北至秧坎咀村四巷18号 | E92: 108 | F92: 1.3 | G92: 南北
A93: 70 | B93: 秧坎咀村五巷 | C93: Yāngkǎnzuǐcūn 5 Xiàng | D93: 南起秧坎咀村五巷1号， 北至秧坎咀村五巷21号 | E93: 90 | F93: 1.3 | G93: 南北
A94: 71 | B94: 秧坎咀村六巷 | C94: Yāngkǎnzuǐcūn 6 Xiàng | D94: 南起秧坎咀村六巷1号， 北至秧坎咀村六巷20号 | E94: 86 | F94: 2.5 | G94: 南北
A95: 72 | B95: 秧坎咀村七巷 | C95: Yāngkǎnzuǐcūn 7 Xiàng | D95: 南起秧坎咀村七巷1号， 北至秧坎咀村七巷21号 | E95: 86 | F95: 1.3 | G95: 南北
A96: 73 | B96: 秧坎咀村八巷 | C96: Yāngkǎnzuǐcūn 8 Xiàng | D96: 南起秧坎咀村八巷1号， 北至秧坎咀村八巷22号 | E96: 108 | F96: 1.3 | G96: 南北
A97: 74 | B97: 秧坎咀村九巷 | C97: Yāngkǎnzuǐcūn 9 Xiàng | D97: 南起秧坎咀村九巷1号， 北至秧坎咀村九巷14号 | E97: 108 | F97: 1.3 | G97: 南北
A98: 75 | B98: 秧坎咀村十巷 | C98: Yāngkǎnzuǐcūn 10 Xiàng | D98: 南起秧坎咀村十巷1号， 北至秧坎咀村十巷15号 | E98: 108 | F98: 1.3 | G98: 南北
A99: 76 | B99: 秧坎咀村十一巷 | C99: Yāngkǎnzuǐcūn 11 Xiàng | D99: 南起秧坎咀村十一巷1号， 北至秧坎咀村十一巷16号 | E99: 100 | F99: 1.3 | G99: 南北
A100: 77 | B100: 杨屋村一巷 | C100: Yángwūcūn 1 Xiàng | D100: 南起杨屋村一巷1号， 北至杨屋村一巷5号 | E100: 60 | F100: 1.5 | G100: 南北
A101: 78 | B101: 杨屋村二巷 | C101: Yángwūcūn 2 Xiàng | D101: 南起杨屋村二巷1号， 北至杨屋村二巷6号 | E101: 85 | F101: 1 | G101: 南北
A102: 79 | B102: 杨屋村三巷 | C102: Yángwūcūn 3 Xiàng | D102: 南起杨屋村三巷1号， 北至杨屋村三巷7号 | E102: 95 | F102: 1 | G102: 南北
A103: 80 | B103: 杨屋村四巷 | C103: Yángwūcūn 4 Xiàng | D103: 南起杨屋村四巷1号， 北至杨屋村四巷8号 | E103: 95 | F103: 1.5 | G103: 南北
A104: 81 | B104: 杨屋村五巷 | C104: Yángwūcūn 5 Xiàng | D104: 南起杨屋村五巷1号， 北至杨屋村五巷9号 | E104: 90 | F104: 2 | G104: 南北
A105: 82 | B105: 杨屋村六巷 | C105: Yángwūcūn 6 Xiàng | D105: 南起杨屋村六巷1号， 北至杨屋村六巷10号 | E105: 90 | F105: 1.5 | G105: 南北
A106: 83 | B106: 杨屋村七巷 | C106: Yángwūcūn 7 Xiàng | D106: 南起杨屋村七巷1号， 北至杨屋村七巷11号 | E106: 90 | F106: 1.5 | G106: 南北
A107: 84 | B107: 杨屋村八巷 | C107: Yángwūcūn 8 Xiàng | D107: 南起杨屋村八巷1号， 北至杨屋村八巷12号 | E107: 90 | F107: 1.5 | G107: 南北
A108: 85 | B108: 杨屋村九巷 | C108: Yángwūcūn 9 Xiàng | D108: 南起杨屋村九巷1号， 北至杨屋村九巷13号 | E108: 70 | F108: 1.5 | G108: 南北
A109: 86 | B109: 水二叶屋村一巷 | C109: Shuǐèr Yèwūcūn 1 Xiàng | D109: 南起水二叶屋村一巷1号， 北至水二叶屋村一巷25号 | E109: 78 | F109: 1.2 | G109: 南北
A110: 87 | B110: 水二叶屋村二巷 | C110: Shuǐèr Yèwūcūn 2 Xiàng | D110: 南起水二叶屋村二巷1号， 北至水二叶屋村二巷18号 | E110: 93 | F110: 2.8 | G110: 南北
A111: 88 | B111: 水二叶屋村三巷 | C111: Shuǐèr Yèwūcūn 3 Xiàng | D111: 南起水二叶屋村三巷1号， 北至水二叶屋村三巷20号 | E111: 89 | F111: 1.2 | G111: 南北
A112: 89 | B112: 水二叶屋村四巷 | C112: Shuǐèr Yèwūcūn 4 Xiàng | D112: 南起水二叶屋村四巷1号， 北至水二叶屋村四巷18号 | E112: 95 | F112: 1.2 | G112: 南北
A113: 90 | B113: 水二叶屋村五巷 | C113: Shuǐèr Yèwūcūn 5 Xiàng | D113: 南起水二叶屋村五巷1号， 北至水二叶屋村五巷21号 | E113: 95 | F113: 2.8 | G113: 南北
A114: 91 | B114: 水二叶屋村六巷 | C114: Shuǐèr Yèwūcūn 6 Xiàng | D114: 南起水二叶屋村六巷1号， 北至水二叶屋村六巷20号 | E114: 80 | F114: 1.2 | G114: 南北
A115: 92 | B115: 水二叶屋村七巷 | C115: Shuǐèr Yèwūcūn 7 Xiàng | D115: 南起水二叶屋村七巷1号， 北至水二叶屋村七巷17号 | E115: 96 | F115: 2.8 | G115: 南北
A116: 93 | B116: 水二叶屋村八巷 | C116: Shuǐèr Yèwūcūn 8 Xiàng | D116: 南起水二叶屋村八巷1号， 北至水二叶屋村八巷16号 | E116: 103 | F116: 1.2 | G116: 南北
A117: 94 | B117: 水二叶屋村九巷 | C117: Shuǐèr Yèwūcūn 9 Xiàng | D117: 南起水二叶屋村九巷1号， 北至水二叶屋村九巷14号 | E117: 96 | F117: 1.2 | G117: 南北
A118: 95 | B118: 水二叶屋村十巷 | C118: Shuǐèr Yèwūcūn 10 Xiàng | D118: 南起水二叶屋村十巷1号， 北至水二叶屋村十巷15号 | E118: 90 | F118: 1.2 | G118: 南北
A119: 96 | B119: 水二叶屋村十一巷 | C119: Shuǐèr Yèwūcūn 11 Xiàng | D119: 南起水二叶屋村十一巷1号， 北至水二叶屋村十一巷16号 | E119: 83 | F119: 1.2 | G119: 南北
A120: 97 | B120: 水二叶屋村十二巷 | C120: Shuǐèr Yèwūcūn 12 Xiàng | D120: 南起水二叶屋村十二巷1号， 北至水二叶屋村十二巷17号 | E120: 80 | F120: 1.2 | G120: 南北
A121: 98 | B121: 水二叶屋村十三巷 | C121: Shuǐèr Yèwūcūn 13 Xiàng | D121: 南起水二叶屋村十三巷1号， 北至水二叶屋村十三巷18号 | E121: 78 | F121: 2.8 | G121: 南北
A122: 99 | B122: 水二叶屋村十四巷 | C122: Shuǐèr Yèwūcūn 14 Xiàng | D122: 南起水二叶屋村十四巷1号， 北至水二叶屋村十四巷19号 | E122: 78 | F122: 1.2 | G122: 南北
A123: 100 | B123: 水二叶屋村十五巷 | C123: Shuǐèr Yèwūcūn 15 Xiàng | D123: 南起水二叶屋村十五巷1号， 北至水二叶屋村十五巷20号 | E123: 70 | F123: 2.8 | G123: 南北
A124: 101 | B124: 水二叶屋村十六巷 | C124: Shuǐèr Yèwūcūn 16 Xiàng | D124: 南起水二叶屋村十六巷1号， 北至水二叶屋村十六巷21号 | E124: 68 | F124: 1.2 | G124: 南北
A126: 3、水四村（21条）
A127: 序号 | B127: 道路名称 | C127: 汉语拼音 | D127: 位置描述 | E127: 基本参数 | G127: 走向
E128: 长 | F128: 宽
A129: 1 | B129: 水四大坪村一巷 | C129: Shuǐsì Dàpíngcūn 1 Xiàng | D129: 西起水四大坪村一巷1号， 东至水四大坪村一巷2号 | E129: 31 | F129: 1.6 | G129: 西东
A130: 2 | B130: 水四大坪村二巷 | C130: Shuǐsì Dàpíngcūn 2 Xiàng | D130: 西起水四大坪村二巷1号， 东至水四大坪村二巷2号 | E130: 65 | F130: 1.6 | G130: 西东
A131: 3 | B131: 水四大坪村三巷 | C131: Shuǐsì Dàpíngcūn 3 Xiàng | D131: 西起水四大坪村三巷1号， 东至水四大坪村三巷2号 | E131: 62 | F131: 1.6 | G131: 西东
A132: 4 | B132: 水四大坪村四巷 | C132: Shuǐsì Dàpíngcūn 4 Xiàng | D132: 西起水四大坪村四巷1号， 东至水四大坪村四巷4号 | E132: 66 | F132: 1.6 | G132: 西东
A133: 5 | B133: 水四大坪村五巷 | C133: Shuǐsì Dàpíngcūn 5 Xiàng | D133: 西起水四大坪村五巷1号， 东至水四大坪村五巷3号 | E133: 61 | F133: 1.6 | G133: 西东
A134: 6 | B134: 水四大坪村六巷 | C134: Shuǐsì Dàpíngcūn 6 Xiàng | D134: 西起水四大坪村六巷1号， 东至水四大坪村六巷4号 | E134: 56 | F134: 1.6 | G134: 西东
A135: 7 | B135: 水四大坪村七巷 | C135: Shuǐsì Dàpíngcūn 7 Xiàng | D135: 西起水四大坪村七巷1号， 东至水四大坪村七巷4号 | E135: 38 | F135: 1.6 | G135: 西东
A136: 8 | B136: 水四大坪村八巷 | C136: Shuǐsì Dàpíngcūn 8 Xiàng | D136: 西起水四大坪村八巷1号， 东至水四大坪村八巷4号 | E136: 21 | F136: 1.6 | G136: 西东
A137: 9 | B137: 水四大坪村九巷 | C137: Shuǐsì Dàpíngcūn 9 Xiàng | D137: 西起水四大坪村九巷1号， 东至水四大坪村九巷4号 | E137: 25 | F137: 1.6 | G137: 西东
A138: 10 | B138: 水四大坪村十巷 | C138: Shuǐsì Dàpíngcūn 10 Xiàng | D138: 西起水四大坪村十巷1号， 东至水四大坪村十巷4号 | E138: 25 | F138: 1.6 | G138: 西东
A139: 11 | B139: 水四大坪村十一巷 | C139: Shuǐsì Dàpíngcūn 11 Xiàng | D139: 西起水四大坪村十一巷1号， 东至水四大坪村十一巷4号 | E139: 45 | F139: 1.6 | G139: 西东
A140: 12 | B140: 水四大坪村十二巷 | C140: Shuǐsì Dàpíngcūn 12 Xiàng | D140: 西起水四大坪村十二巷1号， 东至水四大坪村十二巷4号 | E140: 49 | F140: 1.6 | G140: 西东
A141: 13 | B141: 水四大坪村十三巷 | C141: Shuǐsì Dàpíngcūn 13 Xiàng | D141: 西起水四大坪村十三巷1号， 东至水四大坪村十三巷4号 | E141: 50 | F141: 1.6 | G141: 西东
A142: 14 | B142: 水四大坪村十四巷 | C142: Shuǐsì Dàpíngcūn 14 Xiàng | D142: 西起水四大坪村十四巷4号， 东至水四大坪村十四巷4号 | E142: 50 | F142: 1.6 | G142: 西东
A143: 15 | B143: 水四大坪村十五巷 | C143: Shuǐsì Dàpíngcūn 15 Xiàng | D143: 西起水四大坪村十五巷1号， 东至水四大坪村十五巷4号 | E143: 60 | F143: 1.6 | G143: 西东
A144: 16 | B144: 水四大坪村十六巷 | C144: Shuǐsì Dàpíngcūn 16 Xiàng | D144: 西起水四大坪村十六巷1号， 东至水四大坪村十六巷4号 | E144: 65 | F144: 1.6 | G144: 西东
A145: 17 | B145: 水四大坪村十七巷 | C145: Shuǐsì Dàpíngcūn 17 Xiàng | D145: 西起水四大坪村十七巷1号， 东至水四大坪村十七巷4号 | E145: 65 | F145: 1.6 | G145: 西东
A146: 18 | B146: 水四大坪村十八巷 | C146: Shuǐsì Dàpíngcūn 18 Xiàng | D146: 西起水四大坪村十八巷1号， 东至水四大坪村十八巷3号 | E146: 33 | F146: 1.6 | G146: 西东
A147: 19 | B147: 水四大坪村十九巷 | C147: Shuǐsì Dàpíngcūn 19 Xiàng | D147: 西起水四大坪村十九巷1号， 东至水四大坪村十九巷3号 | E147: 68 | F147: 1.6 | G147: 西东
A148: 20 | B148: 水四大坪村二十巷 | C148: Shuǐsì Dàpíngcūn 20 Xiàng | D148: 西起水四大坪村二十巷1号， 东至水四大坪村二十巷2号 | E148: 66 | F148: 1.6 | G148: 西东
A149: 21 | B149: 水四大坪村二十一巷 | C149: Shuǐsì Dàpíngcūn 21 Xiàng | D149: 西起水四大坪村二十一巷1号， 东至水四大坪村二十一巷6号 | E149: 62 | F149: 1.6 | G149: 西东
A151: 4、天湖村（15条）
A152: 序号 | B152: 道路名称 | C152: 汉语拼音 | D152: 位置描述 | E152: 基本参数 | G152: 走向
E153: 长 | F153: 宽
A154: 1 | B154: 葭山村一巷 | C154: Jiāshāncūn 1 Xiànɡ | D154: 南起葭山村一巷1号， 北至葭山村一巷4号 | E154: 123 | F154: 1.5 | G154: 南北
A155: 2 | B155: 葭山村二巷 | C155: Jiāshāncūn 2 Xiànɡ | D155: 南起葭山村二巷1号， 北至葭山村二巷10号 | E155: 134 | F155: 1.5 | G155: 南北
A156: 3 | B156: 葭山村三巷 | C156: Jiāshāncūn 3 Xiànɡ | D156: 南起葭山村三巷1号， 北至葭山村三巷11号 | E156: 145 | F156: 1.5 | G156: 南北
A157: 4 | B157: 葭山村四巷 | C157: Jiāshāncūn 4 Xiànɡ | D157: 南起葭山村四巷1号， 北至葭山村四巷12号 | E157: 147 | F157: 1.5 | G157: 南北
A158: 5 | B158: 葭山村五巷 | C158: Jiāshāncūn 5 Xiànɡ | D158: 南起葭山村五巷1号， 北至葭山村五巷13号 | E158: 150 | F158: 1.5 | G158: 南北
A159: 6 | B159: 葭山村六巷 | C159: Jiāshāncūn 6 Xiànɡ | D159: 南起葭山村六巷1号， 北至葭山村六巷13号 | E159: 153 | F159: 1.5 | G159: 南北
A160: 7 | B160: 葭山村七巷 | C160: Jiāshāncūn 7 Xiànɡ | D160: 南起葭山村七巷1号， 北至葭山村七巷13号 | E160: 153 | F160: 1.5 | G160: 南北
A161: 8 | B161: 葭山村八巷 | C161: Jiāshāncūn 8 Xiànɡ | D161: 南起葭山村八巷1号， 北至葭山村八巷13号 | E161: 153 | F161: 5 | G161: 南北
A162: 9 | B162: 葭山村九巷 | C162: Jiāshāncūn 9 Xiànɡ | D162: 南起葭山村九巷1号， 北至葭山村九巷13号 | E162: 150 | F162: 1.5 | G162: 南北
A163: 10 | B163: 葭山村十巷 | C163: Jiāshāncūn 10 Xiànɡ | D163: 南起葭山村十巷6号， 北至葭山村十巷12号 | E163: 147 | F163: 1.5 | G163: 南北
A164: 11 | B164: 葭山村十一巷 | C164: Jiāshāncūn 11 Xiànɡ | D164: 南起葭山村十一巷1号， 北至葭山村十一巷12号 | E164: 146 | F164: 1.5 | G164: 南北
A165: 12 | B165: 葭山村十二巷 | C165: Jiāshāncūn 12 Xiànɡ | D165: 南起葭山村十二巷6号， 北至葭山村十二巷10号 | E165: 139 | F165: 1.5 | G165: 南北
A166: 13 | B166: 葭山村十三巷 | C166: Jiāshāncūn 13 Xiànɡ | D166: 南起葭山村十三巷1号， 北至葭山村十三巷7号 | E166: 67 | F166: 1.5 | G166: 南北
A167: 14 | B167: 葭山村十四巷 | C167: Jiāshāncūn 14 Xiànɡ | D167: 南起葭山村十四巷1号， 北至葭山村十四巷4号 | E167: 62 | F167: 1.5 | G167: 南北
A168: 15 | B168: 葭山村十五巷 | C168: Jiāshāncūn 15 Xiànɡ | D168: 南起葭山村十五巷1号， 北至葭山村十五巷3号 | E168: 34 | F168: 1.5 | G168: 南北
A170: 二、水口镇（51条）
A171: 序号 | B171: 道路名称 | C171: 汉语拼音 | D171: 位置描述 | E171: 基本参数 | G171: 走向
E172: 长 | F172: 宽
A173: 1 | B173: 万福街 | C173: Wànfú Jiē | D173: 东起：嘉怡园 西至：水口园村 | E173: 320米 | F173: 7米 | G173: 东西
A174: 2 | B174: 嘉兴北路 | C174: Jiāxīng Běilù | D174: 南起：东乐路 北至：新市北路 | E174: 2300米 | F174: 16.5米 | G174: 南北
A175: 3 | B175: 永乐街 | C175: Yǒnglè Jiē | D175: 南起：华龙路 北至：麦屋路 | E175: 148米 | F175: 6米 | G175: 南北
A176: 4 | B176: 内环东路 | C176: Nèihuán Dōnglù | D176: 南起：东乐路 北至：唐良路 | E176: 908米 | F176: 15米 | G176: 南北
A177: 5 | B177: 百汇市场一街 | C177: Bǎihuìshìchǎng 1 Jiē | D177: 南起：人和东路 北至：红进路 | E177: 348米 | F177: 12米 | G177: 南北
A178: 6 | B178: 北旺路 | C178: Běiwàng Lù | D178: 东起：嘉兴北路 西至：西就路 | E178: 500米 | F178: 12米 | G178: 东西
A179: 7 | B179: 大新路 | C179: Dàxīn Lù | D179: 南起：大宁路 北至：新濠华庭小区 | E179: 220米 | F179: 15米 | G179: 南北
A180: 8 | B180: 大兴路 | C180: Dàxīng Lù | D180: 东起：大新路 西至：银龙路 | E180: 490米 | F180: 7.5米 | G180: 东西
A181: 9 | B181: 东成路 | C181: Dōngchéng Lù | D181: 南起：东乐路 北至：嘉兴北路 | E181: 420米 | F181: 12米 | G181: 南北
A182: 10 | B182: 丰田路 | C182: Fēngtián Lù | D182: 南起：中山路 北至：蟠龙路 | E182: 300米 | F182: 12米 | G182: 南北
A183: 11 | B183: 岗顶路 | C183: Gǎngdǐng Lù | D183: 东起：G325国道 西至：无名小巷 | E183: 220米 | F183: 5米 | G183: 东西
A184: 12 | B184: 观福路 | C184: Guānfú Lù | D184: 东起：观中路 西至：龙德路 | E184: 90米 | F184: 14米 | G184: 东西
A185: 13 | B185: 观前路 | C185: Guānqián Lù | D185: 东起：民福路 西至：龙德路 | E185: 200米 | F185: 14米 | G185: 东西
A186: 14 | B186: 观中路 | C186: Guānzhōng Lù | D186: 南起：东埠路 北至：观前路 | E186: 360米 | F186: 18米 | G186: 南北
A187: 15 | B187: 华北路 | C187: Huáběi Lù | D187: 东起：无名小巷 西至：无名小巷 | E187: 200米 | F187: 6米 | G187: 东西
A188: 16 | B188: 华乐路 | C188: Huálè Lù | D188: 南起：环市东路 北至：华阳路 | E188: 260米 | F188: 12米 | G188: 南北
A189: 17 | B189: 华龙路 | C189: Huálóng Lù | D189: 东起：民福路 西至：新市南路 | E189: 450米 | F189: 14米 | G189: 东西
A190: 18 | B190: 环村路 | C190: Huáncūn Lù | D190: 南起：鸿悦卫浴 北至：无名小路 | E190: 200米 | F190: 5米 | G190: 南北
A191: 19 | B191: 环市东路 | C191: Huánshì Dōnglù | D191: 东起：内环西路 西至：G325国道 | E191: 440米 | F191: 35米 | G191: 东西
A192: 20 | B192: 聚福路 | C192: Jùfú Lù | D192: 东起：鸿福路 西至：永福路 | E192: 120米 | F192: 12米 | G192: 东西
A193: 21 | B193: 聚龙路 | C193: Jùlóng Lù | D193: 东起：丰田路 西至：无名路 | E193: 70米 | F193: 4米 | G193: 东西
A194: 22 | B194: 开美路 | C194: Kāiměi Lù | D194: 南起：无名小路 北至：325国道 | E194: 200米 | F194: 8米 | G194: 南北
A195: 23 | B195: 乐安路 | C195: Lè'ān Lù | D195: 东起：太和路 西至：民福路 | E195: 1270米 | F195: 15米 | G195: 东西
A196: 24 | B196: 龙德北路 | C196: Lóngdé Běilù | D196: 东起：石龙路 西至：民福路 | E196: 400米 | F196: 14米 | G196: 东西
A197: 25 | B197: 龙德一横路 | C197: Lóngdé 1 Hénglù | D197: 东起：龙德路 西至：永乐街 | E197: 70米 | F197: 4米 | G197: 东西
A198: 26 | B198: 龙塘东路 | C198: Lóngtáng Dōnglù | D198: 东起：卫浴博览城 西至：325国道海燕路口 | E198: 1900米 | F198: 25米 | G198: 东西
A199: 27 | B199: 龙塘西路 | C199: Lóngtáng Xīlù | D199: 西起：华艺卫浴总部 东至：325国道海燕路口 | E199: 1500米 | F199: 37米 | G199: 西东
A200: 28 | B200: 平岗北路 | C200: Pínggǎng Běilù | D200: 东起：嘉兴北路 西至：罗冈路 | E200: 202米 | F200: 12米 | G200: 东西
A201: 29 | B201: 石龙路 | C201: Shílóng Lù | D201: 东起：石龙东路 西至：G325国道 | E201: 260米 | F201: 12米 | G201: 东西
A202: 30 | B202: 同福路 | C202: Tóngfú Lù | D202: 南起：太和路 北至：杨桃路 | E202: 460米 | F202: 15米 | G202: 南北
A203: 31 | B203: 维新路 | C203: Wéixīn Lù | D203: 东起：中兴路 西至：红花路 | E203: 280米 | F203: 12米 | G203: 东西
A204: 32 | B204: 西昌路 | C204: Xīchāng Lù | D204: 南起：东乐路 北至：北旺路 | E204: 310米 | F204: 12米 | G204: 南北
A205: 33 | B205: 西就路 | C205: Xījiù Lù | D205: 南起：东乐路 北到：北旺路 | E205: 380米 | F205: 12米 | G205: 南北
... 1033 more rows
